Workbook

Sheet Tabelle1
B2: STERNZEIT-UHR | G2: Welche Sterne stehen gerade im Süden? | K2: In welchem Sternbild steht die Sonne? | T2: Ingo Mennerich 0318
T3: Überabeitet: 0718
B6: DATUM | E6: 2018-07-16 | U6: =E20 -> 1.168976536
B8: UHRZEIT | E8: 08:51:22 | U8: =E34 -> 11:17:13.904
B10: UTC = MEZ - 1h, MESZ -2h | E10: -2
B12: GEOGRAFISCHE LÄNGE | E12: 9 | F12: °
E14: 44 | F14: ´
B18: GEWÄHLTE ZEIT | D18: =Tabelle2!F29 -> 2018-07-16T08:51:22
B20: STERNZEIT, lokal (LST) | E20: =Tabelle2!F44 -> 1.168976536
B22: STERNZEIT, Greenwich (GMST) | E22: =Tabelle2!F42 -> 1.141939499
B27: SYSTEMZEIT (Computer) | D27: =Tabelle2!F56 -> 2018-07-16T15:01:20.420
B29: DATUM | E29: =Tabelle2!B56 -> 2018-07-16T15:01:20.420
B31: UHRZEIT | E31: =Tabelle2!D56 -> 43297.62593
B34: STERNZEIT, lokal (LST) | E34: =Tabelle2!F71 -> 11:17:13.904
B36: STERNZEIT, Greenwich (GMST) | E36: =Tabelle2!F69 -> 10:38:17.904
C40: Lokale Sternzeit, berechnet auf der Grundlage der eingebenen Zeit bzw. der Systemzeit Ihres Computers und der örtlichen geografischen Länge.
C41: Lokale Sternzeit = Rektaszension des zu diesem Zeitpunkt im Meridian (Süden) stehenden Sterns. Beispiel: Orion steht bei Sternzeit 5 h im Süden.

Sheet Tabelle2
A1: STERNZEIT_RECHNER
A2: Local Sideral Time (LST) und Greenwich Mean Sideral Time (GMST)
A4: Ortsmeridian | H4: Sternzeit (Lokal)
A5: =Tabelle1!E12 -> 9 | B5: ° | C5: =Tabelle1!E14 -> 44 | D5: ´ | E5: =A5+C5/60 -> 9.733333333 | H5: Nach eingebener Zeit: | J5: =IF(J9>24,J9-24,J9) -> 4.055436872 | K5: 0
H6: Nach Systemzeit: | J6: =IF(J10>24,J10-24,J10) -> 11.28719545 | K6: 0
A7: Differenz zu GMT | D7: =E5/15 -> 0.6488888889 | E7: =D7/24 -> 00:38:56 | F7: h
A9: UHR EINSTELLEN | J9: =F44*24 -> 28.05543687
A10: STARTZEIT: | B10: NULLMERIDIANDURCHGANG DES FRÜHLINGSPUNKTES | J10: =F71*24 -> 11.28719545
B11: ZUR FRÜHJAHRS-TAGUNDNACHTGLEICHE IN GREENWICH
B13: Sternzeit Greenwich Mean Sideral Time | E13: 2018-03-20 | F13: 12:07:00
B14: =E13+F13 -> 2018-03-20T12:07:00 | E14: (12 h + 7min Zeitgleichung)
A16: UMRECHNUNG SONNENTAG STERNTAG
B18: Sterntag= | C18: =H18 -> 23.9344692 | D18: Sonnentage | F18: 365,44/366,44*24= | H18: =365.24/366.24*24 -> 23.9344692
B20: Dtag | C20: =24-C18 -> 0.06553079948 | D20: Tage
C22: =C20/24 -> 0.002730449978 | D22: pro Tag
A27: DATUM und ZEIT (MEZ)
B29: =Tabelle1!E6 -> 2018-07-16 | D29: =Tabelle1!E8 -> 08:51:22 | F29: =B29+D29 -> 2018-07-16T08:51:22 | G29: MEZ
B31: =B29 -> 2018-07-16 | D31: =D29-1/24 -> 07:51:22 | F31: =B31+D31 -> 2018-07-16T07:51:22 | G31: UT
B33: DTage | D33: =F31-B14 -> 117.8224769
D34: =INT(D33) -> 117 | E34: Tage | M34: h
C35: + | D35: =D33-D34 -> 0.8224768518 | E35: Tage = | F35: =D35*24 -> 19.73944444 | G35: h
B37: Seit Meridiandurchgang des Frühlingspunktes am | E37: =E13 -> 2018-03-20 | F37: vergangen:
C39: =D34 -> 117 | D39: Tage | E39: =F35/24 -> 19:44:22 | F39: Stunden
D41: =C20*D34+D35*24 -> 27.40654798
D42: Sternzeit Greenwich (GMST) | F42: =IF(D41<0,(24-D41*-1)/24,D41/24) -> 1.141939499 | I42: =D41/24 -> 1.141939499
D43: =C20*D34+D35*24+D7 -> 28.05543687
D44: Lokale Sternzeit (LST) | F44: =IF(D43<0,(24-D43*-1)/24,D43/24) -> 1.168976536 | I44: =IF(D43<0,(24-D43*-1)/24,D43/24) -> 1.168976536
A54: SYSTEMZEIT
B56: =D56 -> 2018-07-16T15:01:20.420 | D56: =F56 -> 43297.62593 | F56: =NOW()+Tabelle1!E10/24 -> 2018-07-16T15:01:20.420
B58: =B56 -> 2018-07-16T15:01:20.420 | D58: =F58 -> 43297.62593 | F58: =NOW()+Tabelle1!E10/24 -> 2018-07-16T15:01:20.420
B60: DTage | D60: =F58-B14 -> 118.1210697
D61: =INT(D60) -> 118 | E61: Tage
C62: + | D62: =D60-D61 -> 0.1210696759 | E62: Tage = | F62: =D62*24 -> 2.905672222 | G62: Stunden
B64: Seit Meridiandurchgang der Sonne am | E64: =E13 -> 2018-03-20 | F64: vergangen:
C66: =D61 -> 118 | D66: Tage | E66: =F62/24 -> 02:54:20.420 | F66: Stunden
D68: =$C$20*D61+D62*24 -> 10.63830656
D69: Sternzeit Greenwich (GMST) | F69: =IF(D68<0,(24-D68*-1)/24,D68/24) -> 10:38:17.904
D70: =$C$20*D61+D62*24+D7 -> 11.28719545
D71: Lokale Sternzeit (LST) | F71: =IF(D70<0,(24-D70*-1)/24,D70/24) -> 11:17:13.904
B80: 2018-03-20 | E80: 0.0655303 | F80: pro Tag | G80: X | H80: =C83 -> 118 | I80: Tage = | J80: =E80*C83 -> 7.7325754
H81: =IF(C85<0,C85+365,C85) -> 118 | I81: Tage = | J81: =E80*H81 -> 7.7325754
A83: Datum Input | B83: =Tabelle1!E6 -> 2018-07-16 | C83: =B83-B80 -> 118 | D83: Tage | E83: Rektaszension | G83: =J81 -> 7.7325754 | H83: =IF(J80<0,24+J80,J80) -> 7.7325754 | I83: 0
E84: Deklination | G84: =23.43472*SIN(RADIANS(360*(C85)/365.24)) -> 21.00762423 | H84: =23.43472*SIN(RADIANS(360*(C83)/365.24)) -> 21.00762423 | I84: 0
A85: Systemzeit | B85: =Tabelle1!E29 -> 2018-07-16T15:01:20.420 | C85: =D61 -> 118 | D85: Tage

Sheet Tabelle3
